[Event "*** MasterClass Titled Tuesday Blitz"]
[Site "Chess.com"]
[Date "2017.09.05"]
[Round "2"]
[White "dhanushbharadwaj"]
[Black "Rokis13"]
[Result "1-0"]
[WhiteElo "2436"]
[BlackElo "2344"]
[TimeControl "180+2"]
[EndTime "13:21:27 PDT"]
[Termination "dhanushbharadwaj won by resignation"]

1. Nf3 {[%clk 0:03:01.9]} 1... Nf6 {[%clk 0:03:00.4]} 2. c4 {[%clk 0:02:51.8]}
2... e6 {[%clk 0:03:02.3]} 3. g3 {[%clk 0:02:50.2]} 3... d5 {[%clk 0:03:02.7]}
4. b3 {[%clk 0:02:50.6]} 4... Be7 {[%clk 0:03:03.1]} 5. Bg2 {[%clk 0:02:51]}
5... O-O {[%clk 0:03:03.6]} 6. O-O {[%clk 0:02:52.1]} 6... c5 {[%clk 0:03:03.9]}
7. d3 {[%clk 0:02:51.2]} 7... Nc6 {[%clk 0:03:05.2]} 8. e3 {[%clk 0:02:50.9]}
8... d4 {[%clk 0:03:03.8]} 9. exd4 {[%clk 0:02:49.7]} 9... Nxd4 {[%clk
0:03:01.3]} 10. Bb2 {[%clk 0:02:46.9]} 10... Nc6 {[%clk 0:02:57.6]} 11. Na3
{[%clk 0:02:39]} 11... Bd7 {[%clk 0:02:52.7]} 12. Nc2 {[%clk 0:02:37.3]} 12...
Qc7 {[%clk 0:02:46.6]} 13. d4 {[%clk 0:02:37.4]} 13... cxd4 {[%clk 0:02:46.6]}
14. Ncxd4 {[%clk 0:02:38]} 14... Rfd8 {[%clk 0:02:45.4]} 15. Nb5 {[%clk
0:02:38.5]} 15... Qb8 {[%clk 0:02:43.9]} 16. Qe2 {[%clk 0:02:37.6]} 16... a6
{[%clk 0:02:45.4]} 17. Nbd4 {[%clk 0:02:35.8]} 17... Qc7 {[%clk 0:02:36.3]} 18.
Rfd1 {[%clk 0:02:34.7]} 18... h6 {[%clk 0:02:27.7]} 19. Rac1 {[%clk 0:02:34.5]}
19... Re8 {[%clk 0:02:25]} 20. Nxc6 {[%clk 0:02:14.2]} 20... Bxc6 {[%clk
0:02:24.4]} 21. Ne5 {[%clk 0:02:14.8]} 21... Bxg2 {[%clk 0:02:24.7]} 22. Kxg2
{[%clk 0:02:16.5]} 22... Rad8 {[%clk 0:02:23.7]} 23. Kg1 {[%clk 0:02:11.5]}
23... Nd7 {[%clk 0:02:06.5]} 24. Ng4 {[%clk 0:02:02.8]} 24... Bc5 {[%clk
0:01:48.9]} 25. Rd3 {[%clk 0:01:15.2]} 25... e5 {[%clk 0:01:47]} 26. Rcd1 {[%clk
0:01:10.9]} 26... f6 {[%clk 0:01:43.3]} 27. Qe4 {[%clk 0:01:06.7]} 27... Nf8
{[%clk 0:01:35.8]} 28. Bc1 {[%clk 0:00:47.6]} 28... Bd4 {[%clk 0:01:30.4]} 29.
Be3 {[%clk 0:00:45.7]} 29... Ne6 {[%clk 0:01:20.6]} 30. Qg6 {[%clk 0:00:44.9]}
30... Qf7 {[%clk 0:01:21.1]} 31. Nxh6+ {[%clk 0:00:44.8]} 1-0

[Event "*** MasterClass Titled Tuesday Blitz"]
[Site "Chess.com"]
[Date "2017.09.05"]
[Round "2"]
[White "krzyzan94"]
[Black "sergiochess83"]
[Result "0-1"]
[WhiteElo "2513"]
[BlackElo "2755"]
[TimeControl "180+2"]
[EndTime "13:21:45 PDT"]
[Termination "sergiochess83 won by resignation"]

1. e4 {[%clk 0:03:01.9]} 1... c6 {[%clk 0:02:59.6]} 2. d4 {[%clk 0:03:02.4]}
2... d5 {[%clk 0:03:01.5]} 3. exd5 {[%clk 0:03:04.3]} 3... cxd5 {[%clk
0:03:02.5]} 4. Bd3 {[%clk 0:03:05.8]} 4... Nc6 {[%clk 0:03:02.9]} 5. c3 {[%clk
0:03:07.4]} 5... Qc7 {[%clk 0:03:03.9]} 6. Ne2 {[%clk 0:03:08.9]} 6... Bg4
{[%clk 0:03:04.4]} 7. O-O {[%clk 0:03:10.1]} 7... e6 {[%clk 0:03:04.7]} 8. Qe1
{[%clk 0:03:11.7]} 8... Bd6 {[%clk 0:03:03.1]} 9. f3 {[%clk 0:03:08.9]} 9... Bh5
{[%clk 0:03:03.7]} 10. Qh4 {[%clk 0:03:08.7]} 10... Bg6 {[%clk 0:02:45.7]} 11.
Bxg6 {[%clk 0:03:09.5]} 11... fxg6 {[%clk 0:02:46.1]} 12. Bf4 {[%clk 0:03:08.2]}
12... Nf6 {[%clk 0:02:44.8]} 13. Na3 {[%clk 0:02:46.1]} 13... a6 {[%clk
0:02:43.4]} 14. Nc2 {[%clk 0:02:43.8]} 14... O-O {[%clk 0:02:41.8]} 15. Rae1
{[%clk 0:02:31.9]} 15... e5 {[%clk 0:02:30.6]} 16. dxe5 {[%clk 0:02:31.4]} 16...
Nxe5 {[%clk 0:02:31.7]} 17. Bxe5 {[%clk 0:02:03.4]} 17... Bxe5 {[%clk
0:02:32.5]} 18. Ned4 {[%clk 0:02:04.6]} 18... Rae8 {[%clk 0:02:28.3]} 19. Kh1
{[%clk 0:01:44.6]} 19... Qb6 {[%clk 0:02:24.4]} 20. Nb4 {[%clk 0:01:28.5]} 20...
g5 {[%clk 0:02:13.5]} 21. Qxg5 {[%clk 0:00:58.6]} 21... Bxd4 {[%clk 0:02:10.7]}
22. Nxd5 {[%clk 0:00:52.1]} 22... Qd6 {[%clk 0:02:01.1]} 23. Nxf6+ {[%clk
0:00:31.5]} 23... Bxf6 {[%clk 0:02:01.2]} 24. Qg4 {[%clk 0:00:31.2]} 24... Qd5
{[%clk 0:01:58.6]} 25. a3 {[%clk 0:00:28]} 25... Qd2 {[%clk 0:01:54]} 26. Qc4+
{[%clk 0:00:27.5]} 26... Kh8 {[%clk 0:01:54.6]} 27. Rxe8 {[%clk 0:00:27.6]}
27... Rxe8 {[%clk 0:01:55.3]} 28. h4 {[%clk 0:00:13.4]} 28... Qxb2 {[%clk
0:01:52.6]} 29. Qf7 {[%clk 0:00:14.3]} 29... Rg8 {[%clk 0:01:46.3]} 30. Re1
{[%clk 0:00:15.1]} 30... h6 {[%clk 0:01:39.2]} 31. Re8 {[%clk 0:00:13.3]} 31...
Qb1+ {[%clk 0:01:40.1]} 32. Kh2 {[%clk 0:00:13.9]} 32... Rxe8 {[%clk 0:01:40.6]}
33. Qxe8+ {[%clk 0:00:15.8]} 33... Kh7 {[%clk 0:01:41.8]} 34. c4 {[%clk
0:00:16.8]} 34... Bxh4 {[%clk 0:01:37.2]} 35. Qe6 {[%clk 0:00:13.8]} 35... Bf6
{[%clk 0:01:36.8]} 36. g3 {[%clk 0:00:13.1]} 36... Qd3 {[%clk 0:01:35.8]} 37.
Kh3 {[%clk 0:00:13.5]} 37... Qxf3 {[%clk 0:01:30]} 0-1

[Event "*** MasterClass Titled Tuesday Blitz"]
[Site "Chess.com"]
[Date "2017.09.05"]
[Round "2"]
[White "pKiLz5Rn9b"]
[Black "johnathan113"]
[Result "0-1"]
[WhiteElo "2605"]
[BlackElo "2488"]
[TimeControl "180+2"]
[EndTime "13:21:59 PDT"]
[Termination "johnathan113 won by checkmate"]

1. d4 {[%clk 0:03:01.9]} 1... Nf6 {[%clk 0:03:00.4]} 2. Nf3 {[%clk 0:03:02.9]}
2... g6 {[%clk 0:03:01.7]} 3. Nbd2 {[%clk 0:03:04.5]} 3... Bg7 {[%clk
0:03:02.5]} 4. e4 {[%clk 0:03:05.1]} 4... O-O {[%clk 0:03:03.8]} 5. Be2 {[%clk
0:03:05.9]} 5... d6 {[%clk 0:03:03.1]} 6. O-O {[%clk 0:03:05.7]} 6... c5 {[%clk
0:03:04.7]} 7. dxc5 {[%clk 0:02:54.8]} 7... dxc5 {[%clk 0:03:05.5]} 8. c3 {[%clk
0:02:56.3]} 8... Nc6 {[%clk 0:03:05.7]} 9. Qc2 {[%clk 0:02:51.7]} 9... b6 {[%clk
0:03:04.1]} 10. Rd1 {[%clk 0:02:16.3]} 10... Qc7 {[%clk 0:03:04.8]} 11. Nc4
{[%clk 0:02:16.8]} 11... Bb7 {[%clk 0:03:05.8]} 12. g3 {[%clk 0:02:01.3]} 12...
Rad8 {[%clk 0:03:01.5]} 13. Bf4 {[%clk 0:02:00.8]} 13... Qc8 {[%clk 0:03:02.9]}
14. a4 {[%clk 0:01:54.3]} 14... e5 {[%clk 0:01:48.8]} 15. Bg5 {[%clk 0:01:42.6]}
15... Qe6 {[%clk 0:01:49.5]} 16. Ne3 {[%clk 0:01:39]} 16... Ne7 {[%clk
0:01:48.3]} 17. Bxf6 {[%clk 0:01:24.4]} 17... Bxf6 {[%clk 0:01:50.2]} 18. Bc4
{[%clk 0:01:21.1]} 18... Qc8 {[%clk 0:01:37.6]} 19. Kg2 {[%clk 0:00:55.8]} 19...
h6 {[%clk 0:01:33.4]} 20. h4 {[%clk 0:00:55.9]} 20... Bg7 {[%clk 0:01:34.3]} 21.
h5 {[%clk 0:00:52.4]} 21... Kh7 {[%clk 0:01:33.5]} 22. hxg6+ {[%clk 0:00:45.5]}
22... fxg6 {[%clk 0:01:35.1]} 23. Rh1 {[%clk 0:00:39.7]} 23... Bf6 {[%clk
0:01:33.6]} 24. Rh3 {[%clk 0:00:35.2]} 24... Kg7 {[%clk 0:01:33.3]} 25. Rhh1
{[%clk 0:00:31.2]} 25... Qc6 {[%clk 0:01:25.9]} 26. Nd5 {[%clk 0:00:31.2]} 26...
Nxd5 {[%clk 0:01:12.4]} 27. exd5 {[%clk 0:00:32.4]} 27... Rxd5 {[%clk
0:01:07.9]} 28. Kh2 {[%clk 0:00:19]} 28... Rd2 {[%clk 0:00:47.1]} 29. Qxd2
{[%clk 0:00:14.5]} 29... Qxf3 {[%clk 0:00:45.8]} 30. Rhg1 {[%clk 0:00:14.2]}
30... Qh5# {[%clk 0:00:46.9]} 0-1

[Event "*** MasterClass Titled Tuesday Blitz"]
[Site "Chess.com"]
[Date "2017.09.05"]
[Round "2"]
[White "Quiet_Desperation"]
[Black "Grootneus"]
[Result "1-0"]
[WhiteElo "2230"]
[BlackElo "2106"]
[TimeControl "180+2"]
[EndTime "13:22:00 PDT"]
[Termination "Quiet_Desperation won by resignation"]

1. e4 {[%clk 0:03:01.9]} 1... g6 {[%clk 0:02:59.6]} 2. d4 {[%clk 0:03:01.2]}
2... Bg7 {[%clk 0:03:00.5]} 3. Nc3 {[%clk 0:03:02.2]} 3... d6 {[%clk 0:02:59.8]}
4. Be3 {[%clk 0:03:03.5]} 4... a6 {[%clk 0:02:59]} 5. f3 {[%clk 0:03:04.5]} 5...
b5 {[%clk 0:02:58.5]} 6. Qd2 {[%clk 0:03:03.8]} 6... Nd7 {[%clk 0:02:58.6]} 7.
O-O-O {[%clk 0:03:04.8]} 7... Bb7 {[%clk 0:02:58.7]} 8. g4 {[%clk 0:02:58.4]}
8... h6 {[%clk 0:02:51.2]} 9. Bd3 {[%clk 0:02:56.7]} 9... c5 {[%clk 0:02:52]}
10. dxc5 {[%clk 0:02:57.1]} 10... dxc5 {[%clk 0:02:51.7]} 11. Be2 {[%clk
0:02:37.8]} 11... Ngf6 {[%clk 0:01:54.9]} 12. h4 {[%clk 0:02:29.7]} 12... Rc8
{[%clk 0:01:46]} 13. Nh3 {[%clk 0:02:28.5]} 13... Qa5 {[%clk 0:01:32.9]} 14. Kb1
{[%clk 0:02:27.4]} 14... b4 {[%clk 0:01:22.8]} 15. Nd5 {[%clk 0:02:20.2]} 15...
Nxd5 {[%clk 0:01:23.8]} 16. exd5 {[%clk 0:02:20.8]} 16... c4 {[%clk 0:01:17.4]}
17. Bd4 {[%clk 0:02:19.3]} 17... c3 {[%clk 0:01:18.5]} 18. Qe3 {[%clk
0:02:15.8]} 18... Bxd5 {[%clk 0:01:16.4]} 19. b3 {[%clk 0:01:59.7]} 19... Bxd4
{[%clk 0:00:54.5]} 20. Rxd4 {[%clk 0:01:56.8]} 20... Bc6 {[%clk 0:00:34.9]} 21.
a4 {[%clk 0:01:27.6]} 21... bxa3 {[%clk 0:00:30.6]} 22. Ka2 {[%clk 0:01:24.8]}
22... Bb5 {[%clk 0:00:21.3]} 23. Re1 {[%clk 0:01:13.1]} 23... e6 {[%clk
0:00:19.4]} 24. Bxb5 {[%clk 0:00:52.7]} 24... axb5 {[%clk 0:00:17.6]} 25. Red1
{[%clk 0:00:48.4]} 25... Nf6 {[%clk 0:00:15.5]} 26. Qe5 {[%clk 0:00:45.4]} 26...
Ke7 {[%clk 0:00:08.9]} 27. g5 {[%clk 0:00:43.5]} 27... Ne8 {[%clk 0:00:08.1]}
28. Rd7+ {[%clk 0:00:40]} 1-0

[Event "*** MasterClass Titled Tuesday Blitz"]
[Site "Chess.com"]
[Date "2017.09.05"]
[Round "2"]
[White "maciek_92"]
[Black "Godzillator"]
[Result "1-0"]
[WhiteElo "2519"]
[BlackElo "2298"]
[TimeControl "180+2"]
[EndTime "13:22:04 PDT"]
[Termination "maciek_92 won by checkmate"]

1. c4 {[%clk 0:03:01.7]} 1... c6 {[%clk 0:03:00.8]} 2. Nf3 {[%clk 0:03:01.8]}
2... d5 {[%clk 0:03:01.8]} 3. d4 {[%clk 0:03:01.8]} 3... Nf6 {[%clk 0:03:02.2]}
4. Nc3 {[%clk 0:03:02.7]} 4... a6 {[%clk 0:03:03.1]} 5. Bg5 {[%clk 0:02:57.3]}
5... Ne4 {[%clk 0:03:03]} 6. Bf4 {[%clk 0:02:49.2]} 6... Nxc3 {[%clk 0:03:02.5]}
7. bxc3 {[%clk 0:02:49.9]} 7... dxc4 {[%clk 0:03:03.7]} 8. e4 {[%clk 0:02:50.1]}
8... b5 {[%clk 0:03:04.7]} 9. Qc2 {[%clk 0:02:39.3]} 9... Bb7 {[%clk 0:03:04.7]}
10. g3 {[%clk 0:02:39]} 10... Nd7 {[%clk 0:03:03.7]} 11. Bg2 {[%clk 0:02:40.5]}
11... e6 {[%clk 0:03:02.8]} 12. O-O {[%clk 0:02:41.7]} 12... Be7 {[%clk
0:03:03.2]} 13. Rfe1 {[%clk 0:02:41.9]} 13... O-O {[%clk 0:03:03.8]} 14. Rad1
{[%clk 0:02:42.7]} 14... Nb6 {[%clk 0:02:58.5]} 15. h4 {[%clk 0:02:39]} 15...
Qc8 {[%clk 0:02:58.5]} 16. Bh3 {[%clk 0:02:36.3]} 16... Rd8 {[%clk 0:02:37.2]}
17. h5 {[%clk 0:02:29]} 17... Bd6 {[%clk 0:02:34.9]} 18. Bg5 {[%clk 0:02:28.2]}
18... Rf8 {[%clk 0:02:32.2]} 19. h6 {[%clk 0:02:21]} 19... g6 {[%clk 0:02:33]}
20. Qd2 {[%clk 0:02:02.2]} 20... Qc7 {[%clk 0:02:32.6]} 21. Bf6 {[%clk
0:01:58.8]} 21... Nd7 {[%clk 0:02:30.2]} 22. Qg5 {[%clk 0:01:56.8]} 22... Rfe8
{[%clk 0:02:28.4]} 23. Bg7 {[%clk 0:01:46.3]} 23... Be7 {[%clk 0:02:27.6]} 24.
Qe3 {[%clk 0:01:43.6]} 24... Rad8 {[%clk 0:02:25.4]} 25. Nh2 {[%clk 0:01:39.7]}
25... c5 {[%clk 0:02:24.3]} 26. d5 {[%clk 0:01:31.4]} 26... exd5 {[%clk
0:02:24.2]} 27. exd5 {[%clk 0:01:32.2]} 27... Qb8 {[%clk 0:02:19.1]} 28. Bxd7
{[%clk 0:01:24.7]} 28... Rxd7 {[%clk 0:02:19.3]} 29. d6 {[%clk 0:01:26.3]} 29...
Rxd6 {[%clk 0:02:16.4]} 30. Be5 {[%clk 0:01:21.3]} 30... Bc6 {[%clk 0:01:39.4]}
31. Bxd6 {[%clk 0:01:08.1]} 31... Bxd6 {[%clk 0:01:40.5]} 32. Qg5 {[%clk
0:01:03.6]} 32... Rxe1+ {[%clk 0:01:38.5]} 33. Rxe1 {[%clk 0:01:05.5]} 33... Qc8
{[%clk 0:01:36.8]} 34. Ng4 {[%clk 0:01:02.6]} 34... f5 {[%clk 0:01:33.3]} 35.
Nf6+ {[%clk 0:01:02.6]} 35... Kf7 {[%clk 0:01:33.6]} 36. Nh5 {[%clk 0:00:44.7]}
36... Qc7 {[%clk 0:01:12.8]} 37. Qf6+ {[%clk 0:00:42.4]} 37... Kg8 {[%clk
0:01:13.9]} 38. Qe6+ {[%clk 0:00:43]} 38... Kf8 {[%clk 0:01:13.1]} 39. Nf6
{[%clk 0:00:38.6]} 39... Bxg3 {[%clk 0:00:58.3]} 40. Qg8# {[%clk 0:00:38.9]} 1-0

[Event "*** MasterClass Titled Tuesday Blitz"]
[Site "Chess.com"]
[Date "2017.09.05"]
[Round "2"]
[White "AdrianaNikolova"]
[Black "3f32"]
[Result "0-1"]
[WhiteElo "2261"]
[BlackElo "2371"]
[TimeControl "180+2"]
[EndTime "13:22:06 PDT"]
[Termination "3f32 won by resignation"]

1. e4 {[%clk 0:03:00.4]} 1... c5 {[%clk 0:02:57.2]} 2. Nf3 {[%clk 0:03:00.5]}
2... d6 {[%clk 0:02:57.9]} 3. d4 {[%clk 0:03:00.8]} 3... cxd4 {[%clk 0:02:59.8]}
4. Nxd4 {[%clk 0:03:02.7]} 4... Nf6 {[%clk 0:02:59.6]} 5. Nc3 {[%clk 0:03:04]}
5... a6 {[%clk 0:02:58.7]} 6. Bg5 {[%clk 0:03:04.3]} 6... Nbd7 {[%clk
0:02:57.2]} 7. Bc4 {[%clk 0:03:03.8]} 7... Qb6 {[%clk 0:02:56.9]} 8. Bb3 {[%clk
0:02:56.2]} 8... e6 {[%clk 0:02:53.8]} 9. Qd2 {[%clk 0:02:55.1]} 9... Be7 {[%clk
0:02:54.4]} 10. O-O-O {[%clk 0:02:55.8]} 10... h6 {[%clk 0:02:55.8]} 11. Be3
{[%clk 0:02:49.8]} 11... Nc5 {[%clk 0:02:56.3]} 12. f3 {[%clk 0:02:49.7]} 12...
Bd7 {[%clk 0:02:55.7]} 13. g4 {[%clk 0:02:47.7]} 13... a5 {[%clk 0:02:55.7]} 14.
a4 {[%clk 0:02:40.4]} 14... Qb4 {[%clk 0:02:49.7]} 15. Kb1 {[%clk 0:02:03.5]}
15... Nxa4 {[%clk 0:02:44.6]} 16. Nxa4 {[%clk 0:01:36]} 16... Bxa4 {[%clk
0:02:46.5]} 17. Qxb4 {[%clk 0:01:28.5]} 17... axb4 {[%clk 0:02:47.4]} 18. Bxa4+
{[%clk 0:01:30.4]} 18... Rxa4 {[%clk 0:02:48.6]} 19. Nb5 {[%clk 0:01:31.7]}
19... Kd7 {[%clk 0:02:46.5]} 20. Nxd6 {[%clk 0:00:33.8]} 20... Bxd6 {[%clk
0:02:48.4]} 21. Bc5 {[%clk 0:00:33.3]} 21... Rha8 {[%clk 0:02:18.9]} 22. Rxd6+
{[%clk 0:00:16.7]} 22... Kc7 {[%clk 0:02:17.7]} 23. Kc1 {[%clk 0:00:06.7]} 23...
Ra1+ {[%clk 0:02:12.8]} 24. Kd2 {[%clk 0:00:07.7]} 24... Rxh1 {[%clk 0:02:13.7]}
25. Bxb4 {[%clk 0:00:08]} 25... Rxh2+ {[%clk 0:02:13.4]} 26. Kc3 {[%clk
0:00:09.1]} 26... Rh3 {[%clk 0:02:14.4]} 27. Rd3 {[%clk 0:00:07.8]} 27... b6
{[%clk 0:02:12.1]} 28. Bd6+ {[%clk 0:00:05.5]} 28... Kc6 {[%clk 0:02:13.1]} 29.
Be5 {[%clk 0:00:06.3]} 29... Ra7 {[%clk 0:02:04.9]} 30. Kb4 {[%clk 0:00:05.8]}
30... Rd7 {[%clk 0:02:05.3]} 31. Rc3+ {[%clk 0:00:07.3]} 31... Kb7 {[%clk
0:02:06.9]} 32. Rb3 {[%clk 0:00:06.8]} 32... Rd2 {[%clk 0:02:01.6]} 33. c4
{[%clk 0:00:06.3]} 33... Rf2 {[%clk 0:02:00.6]} 34. Ka4 {[%clk 0:00:03.2]} 34...
Rhxf3 {[%clk 0:01:56.1]} 35. Rb4 {[%clk 0:00:04.6]} 35... Nxe4 {[%clk
0:01:55.9]} 36. Bd4 {[%clk 0:00:05.3]} 36... Rd2 {[%clk 0:01:53.3]} 37. Bxb6
{[%clk 0:00:06.1]} 37... Kc6 {[%clk 0:01:53.4]} 38. Ba7 {[%clk 0:00:06.6]} 38...
Nc5+ {[%clk 0:01:54.3]} 39. Ka5 {[%clk 0:00:04.4]} 39... Rxb2 {[%clk 0:01:47.2]}
40. Rxb2 {[%clk 0:00:03.2]} 40... Ra3+ {[%clk 0:01:48.8]} 41. Kb4 {[%clk
0:00:03.7]} 41... Rxa7 {[%clk 0:01:49.9]} 42. Rf2 {[%clk 0:00:05.1]} 42... Nd3+
{[%clk 0:01:50.4]} 0-1

[Event "*** MasterClass Titled Tuesday Blitz"]
[Site "Chess.com"]
[Date "2017.09.05"]
[Round "2"]
[White "iusegine"]
[Black "kleinebeer98"]
[Result "0-1"]
[WhiteElo "2377"]
[BlackElo "2439"]
[TimeControl "180+2"]
[EndTime "13:22:07 PDT"]
[Termination "kleinebeer98 won by checkmate"]

1. Nf3 {[%clk 0:03:01.9]} 1... Nf6 {[%clk 0:03:00]} 2. c4 {[%clk 0:03:01.9]}
2... c5 {[%clk 0:02:58.7]} 3. Nc3 {[%clk 0:03:02.1]} 3... Nc6 {[%clk 0:02:58.5]}
4. e3 {[%clk 0:02:57.6]} 4... d5 {[%clk 0:02:54.6]} 5. cxd5 {[%clk 0:02:56.9]}
5... Nxd5 {[%clk 0:02:56.5]} 6. Bc4 {[%clk 0:02:52.4]} 6... Nb6 {[%clk
0:02:53.5]} 7. Bb5 {[%clk 0:02:52.9]} 7... Bd7 {[%clk 0:02:47.8]} 8. O-O {[%clk
0:02:51.9]} 8... a6 {[%clk 0:02:47.8]} 9. Bxc6 {[%clk 0:02:45.4]} 9... Bxc6
{[%clk 0:02:49.7]} 10. Ne5 {[%clk 0:02:44.2]} 10... Qc7 {[%clk 0:02:47.8]} 11.
Nxc6 {[%clk 0:02:26.9]} 11... Qxc6 {[%clk 0:02:49.7]} 12. b3 {[%clk 0:02:26.6]}
12... g6 {[%clk 0:02:45.3]} 13. Bb2 {[%clk 0:02:26.7]} 13... Bg7 {[%clk
0:02:46.6]} 14. Rc1 {[%clk 0:02:25.8]} 14... O-O {[%clk 0:02:46]} 15. Qe2 {[%clk
0:01:30.2]} 15... Rfd8 {[%clk 0:02:24.3]} 16. d3 {[%clk 0:01:30]} 16... Nd5
{[%clk 0:02:11.3]} 17. Ne4 {[%clk 0:01:29.2]} 17... Bxb2 {[%clk 0:01:51.1]} 18.
Qxb2 {[%clk 0:01:31.2]} 18... b6 {[%clk 0:01:51.1]} 19. b4 {[%clk 0:01:23.3]}
19... Qb5 {[%clk 0:01:50.5]} 20. d4 {[%clk 0:00:31.5]} 20... Qxb4 {[%clk
0:01:43.5]} 21. Qxb4 {[%clk 0:00:28.2]} 21... cxb4 {[%clk 0:01:45.4]} 22. Rc4
{[%clk 0:00:19]} 22... Rac8 {[%clk 0:01:38.3]} 23. Rfc1 {[%clk 0:00:19.7]} 23...
Nc3 {[%clk 0:01:39.1]} 24. Rxc8 {[%clk 0:00:20.7]} 24... Rxc8 {[%clk 0:01:41]}
25. Kf1 {[%clk 0:00:22.2]} 25... Kg7 {[%clk 0:01:32.5]} 26. a3 {[%clk
0:00:17.8]} 26... a5 {[%clk 0:01:23.8]} 27. axb4 {[%clk 0:00:18.7]} 27... axb4
{[%clk 0:01:25.7]} 28. Nd2 {[%clk 0:00:17.3]} 28... Ra8 {[%clk 0:01:24.7]} 29.
Nc4 {[%clk 0:00:17.9]} 29... b5 {[%clk 0:01:25.6]} 30. Nd2 {[%clk 0:00:15.5]}
30... Ra2 {[%clk 0:01:25.6]} 31. Nb3 {[%clk 0:00:14.5]} 31... Ne4 {[%clk
0:01:26.5]} 32. f3 {[%clk 0:00:14.8]} 32... Nc3 {[%clk 0:01:24.2]} 33. Nc5
{[%clk 0:00:14.2]} 33... Nd5 {[%clk 0:01:22.1]} 34. e4 {[%clk 0:00:12.1]} 34...
Ne3+ {[%clk 0:01:23.3]} 35. Kg1 {[%clk 0:00:13.4]} 35... Rxg2+ {[%clk
0:01:24.2]} 36. Kh1 {[%clk 0:00:15]} 36... Rd2 {[%clk 0:01:25.5]} 37. Rb1 {[%clk
0:00:14.5]} 37... Rxd4 {[%clk 0:01:26]} 38. Rb3 {[%clk 0:00:14.6]} 38... Rd1#
{[%clk 0:01:26.9]} 0-1

[Event "*** MasterClass Titled Tuesday Blitz"]
[Site "Chess.com"]
[Date "2017.09.05"]
[Round "2"]
[White "Iball95"]
[Black "hypert"]
[Result "1-0"]
[WhiteElo "2587"]
[BlackElo "2325"]
[TimeControl "180+2"]
[EndTime "13:22:08 PDT"]
[Termination "Iball95 won by resignation"]

1. d4 {[%clk 0:03:01.9]} 1... Nf6 {[%clk 0:02:55.6]} 2. Bf4 {[%clk 0:03:03.2]}
2... g6 {[%clk 0:02:53.1]} 3. Nc3 {[%clk 0:03:04.5]} 3... d5 {[%clk 0:02:52.9]}
4. e3 {[%clk 0:03:05.7]} 4... Bg7 {[%clk 0:02:52.6]} 5. h4 {[%clk 0:03:07.1]}
5... c6 {[%clk 0:02:50.7]} 6. Nf3 {[%clk 0:03:05.8]} 6... Bg4 {[%clk 0:02:49.7]}
7. Be2 {[%clk 0:03:04.9]} 7... Nbd7 {[%clk 0:02:48.8]} 8. Ne5 {[%clk 0:03:01.5]}
8... Bxe2 {[%clk 0:02:48.3]} 9. Qxe2 {[%clk 0:03:01.2]} 9... h5 {[%clk
0:02:49.6]} 10. e4 {[%clk 0:02:50.6]} 10... Nxe4 {[%clk 0:02:47.5]} 11. Nxe4
{[%clk 0:02:52.5]} 11... dxe4 {[%clk 0:02:47.7]} 12. Qxe4 {[%clk 0:02:49.5]}
12... Nxe5 {[%clk 0:02:48.2]} 13. Bxe5 {[%clk 0:02:49.7]} 13... Qa5+ {[%clk
0:02:48.6]} 14. c3 {[%clk 0:02:48.2]} 14... Bxe5 {[%clk 0:02:49.3]} 15. dxe5
{[%clk 0:02:11.3]} 15... Rd8 {[%clk 0:02:46.2]} 16. e6 {[%clk 0:02:05.6]} 16...
Rd5 {[%clk 0:02:46.6]} 17. exf7+ {[%clk 0:02:05.5]} 17... Kxf7 {[%clk
0:02:46.7]} 18. O-O {[%clk 0:02:06.3]} 18... Re5 {[%clk 0:02:34.9]} 19. Qd4
{[%clk 0:01:43.4]} 19... Rd8 {[%clk 0:02:33.2]} 20. Qf4+ {[%clk 0:01:38.7]}
20... Rf5 {[%clk 0:02:33.2]} 21. Qh6 {[%clk 0:01:38.5]} 21... Rd2 {[%clk
0:02:19.6]} 22. Rae1 {[%clk 0:01:33]} 22... Rd7 {[%clk 0:02:00.2]} 23. Qh7+
{[%clk 0:01:31.2]} 23... Kf6 {[%clk 0:02:00.8]} 24. Re2 {[%clk 0:00:56.7]} 24...
Re5 {[%clk 0:01:15.4]} 25. Qh8+ {[%clk 0:00:55.4]} 25... Ke6 {[%clk 0:01:12.5]}
26. Qg8+ {[%clk 0:00:44.1]} 26... Kf6 {[%clk 0:01:12.6]} 27. Qf8+ {[%clk
0:00:42.2]} 27... Ke6 {[%clk 0:01:12]} 28. Rfe1 {[%clk 0:00:41.7]} 28... Rd5
{[%clk 0:01:02.6]} 29. Qc8+ {[%clk 0:00:39]} 29... Kf7 {[%clk 0:00:59.9]} 30.
Qxb7 {[%clk 0:00:32.6]} 30... Rxe2 {[%clk 0:01:00]} 31. Rxe2 {[%clk 0:00:34.5]}
31... Rd1+ {[%clk 0:00:59.1]} 32. Kh2 {[%clk 0:00:35.1]} 32... Qc5 {[%clk
0:01:00.8]} 33. Qb3+ {[%clk 0:00:34.7]} 33... Kf6 {[%clk 0:00:42.4]} 34. Qxd1
{[%clk 0:00:35.2]} 1-0

[Event "*** MasterClass Titled Tuesday Blitz"]
[Site "Chess.com"]
[Date "2017.09.05"]
[Round "2"]
[White "Cruel_Yaro"]
[Black "GianmarcoVaR"]
[Result "1-0"]
[WhiteElo "2632"]
[BlackElo "2434"]
[TimeControl "180+2"]
[EndTime "13:22:11 PDT"]
[Termination "Cruel_Yaro won on time"]

1. a3 {[%clk 0:02:59.5]} 1... g6 {[%clk 0:03:00.2]} 2. e4 {[%clk 0:02:56.5]}
2... c5 {[%clk 0:02:57.8]} 3. b4 {[%clk 0:02:56.2]} 3... Bg7 {[%clk 0:02:58.6]}
4. c3 {[%clk 0:02:55.3]} 4... d6 {[%clk 0:02:53.3]} 5. bxc5 {[%clk 0:02:50.8]}
5... dxc5 {[%clk 0:02:54.3]} 6. Nf3 {[%clk 0:02:51.1]} 6... Nf6 {[%clk
0:02:51.5]} 7. Bb5+ {[%clk 0:02:51.5]} 7... Bd7 {[%clk 0:02:51.9]} 8. Bxd7+
{[%clk 0:02:47.3]} 8... Qxd7 {[%clk 0:02:51]} 9. e5 {[%clk 0:02:47.2]} 9... Nd5
{[%clk 0:02:49.6]} 10. O-O {[%clk 0:02:46.9]} 10... O-O {[%clk 0:02:49.8]} 11.
d4 {[%clk 0:02:46.9]} 11... Nc6 {[%clk 0:02:37.2]} 12. Qe2 {[%clk 0:02:36.5]}
12... cxd4 {[%clk 0:02:33.2]} 13. cxd4 {[%clk 0:02:37.1]} 13... Rac8 {[%clk
0:02:24.7]} 14. Be3 {[%clk 0:02:32.6]} 14... Na5 {[%clk 0:02:20.2]} 15. Nbd2
{[%clk 0:02:33.2]} 15... Rc2 {[%clk 0:02:16.9]} 16. Qd3 {[%clk 0:02:32.6]} 16...
Rfc8 {[%clk 0:02:16.1]} 17. Ne4 {[%clk 0:02:32]} 17... Qa4 {[%clk 0:01:58.1]}
18. Nc5 {[%clk 0:02:31.3]} 18... Qc4 {[%clk 0:01:56.4]} 19. Rfd1 {[%clk
0:02:08.5]} 19... b6 {[%clk 0:01:44.4]} 20. Ne1 {[%clk 0:01:58]} 20... Rc3
{[%clk 0:01:32.4]} 21. Qxc4 {[%clk 0:01:26.3]} 21... Nxc4 {[%clk 0:01:28.8]} 22.
Ne4 {[%clk 0:01:27.5]} 22... Rxa3 {[%clk 0:01:24.1]} 23. Rxa3 {[%clk 0:01:25.6]}
23... Nxa3 {[%clk 0:01:24.8]} 24. Ra1 {[%clk 0:01:27.1]} 24... Nc4 {[%clk
0:01:19.4]} 25. Rxa7 {[%clk 0:01:26.4]} 25... Ncxe3 {[%clk 0:01:20.1]} 26. fxe3
{[%clk 0:01:27.4]} 26... Bh6 {[%clk 0:01:21.6]} 27. Rd7 {[%clk 0:01:16.2]} 27...
e6 {[%clk 0:00:56.9]} 28. Nd6 {[%clk 0:01:10.8]} 28... Bxe3+ {[%clk 0:00:48.8]}
29. Kf1 {[%clk 0:01:11.8]} 29... Rc7 {[%clk 0:00:48.7]} 30. Rd8+ {[%clk
0:01:12]} 30... Kg7 {[%clk 0:00:49.7]} 31. Ne8+ {[%clk 0:01:13]} 31... Kh6
{[%clk 0:00:48.8]} 32. Nxc7 {[%clk 0:01:01]} 32... Nxc7 {[%clk 0:00:48.8]} 33.
Ke2 {[%clk 0:01:02.1]} 33... Bg5 {[%clk 0:00:08.8]} 34. Rd7 {[%clk 0:01:02]}
34... Nb5 {[%clk 0:00:10.2]} 35. Nf3 {[%clk 0:01:01.4]} 35... f6 {[%clk
0:00:07.6]} 36. h4 {[%clk 0:01:01.4]} 1-0